[Event "Betsys MČR v online bleskovém šachu 2021"]
[Site "Chess.com"]
[Date "2021.04.17"]
[Round "1"]
[White "SanyH"]
[Black "DavidekIII"]
[Result "1/2-1/2"]
[WhiteElo "1617"]
[BlackElo "2210"]
[TimeControl "180+1"]
[EndTime "9:09:22 PDT"]
[Termination "Remíza opakováním pozice"]

1. e4 {[%clk 0:02:57]} 1... c6 {[%clk 0:02:59.9]} 2. d4 {[%clk 0:02:53.2]} 2...
d5 {[%clk 0:02:59.7]} 3. exd5 {[%clk 0:02:52.5]} 3... cxd5 {[%clk 0:03:00.6]} 4.
Nf3 {[%clk 0:02:52.1]} 4... Nf6 {[%clk 0:02:59.1]} 5. Bd3 {[%clk 0:02:47.3]}
5... Nc6 {[%clk 0:02:58.2]} 6. O-O {[%clk 0:02:46.1]} 6... Bg4 {[%clk
0:02:56.8]} 7. c3 {[%clk 0:02:43.4]} 7... e6 {[%clk 0:02:55.9]} 8. Bg5 {[%clk
0:02:41.7]} 8... Be7 {[%clk 0:02:42.3]} 9. Nbd2 {[%clk 0:02:40.7]} 9... O-O
{[%clk 0:02:38.2]} 10. Qc2 {[%clk 0:02:35.6]} 10... h6 {[%clk 0:02:21.3]} 11.
Bh4 {[%clk 0:02:34.7]} 11... Qc7 {[%clk 0:02:12]} 12. Rae1 {[%clk 0:02:21.5]}
12... Bxf3 {[%clk 0:01:45.6]} 13. Nxf3 {[%clk 0:02:20.4]} 13... Rac8 {[%clk
0:01:46]} 14. Qd2 {[%clk 0:02:06.5]} 14... Ne8 {[%clk 0:01:19.7]} 15. Bg3 {[%clk
0:02:01.5]} 15... Bd6 {[%clk 0:01:17.3]} 16. Ne5 {[%clk 0:01:55.7]} 16... Nxe5
{[%clk 0:01:05.9]} 17. dxe5 {[%clk 0:01:54.1]} 17... Bc5 {[%clk 0:01:02.5]} 18.
Qf4 {[%clk 0:01:39.3]} 18... Qe7 {[%clk 0:00:49.2]} 19. Kh1 {[%clk 0:01:26.8]}
19... Qg5 {[%clk 0:00:46.6]} 20. Qf3 {[%clk 0:01:20.3]} 20... a6 {[%clk
0:00:38.7]} 21. Bf4 {[%clk 0:01:16.7]} 21... Qh4 {[%clk 0:00:38.5]} 22. Bg3
{[%clk 0:01:08.9]} 22... Qa4 {[%clk 0:00:32]} 23. a3 {[%clk 0:01:04.7]} 23...
Nc7 {[%clk 0:00:27]} 24. Bf4 {[%clk 0:00:48.5]} 24... Be7 {[%clk 0:00:13.8]} 25.
Qg3 {[%clk 0:00:46.7]} 25... Kh8 {[%clk 0:00:11.3]} 26. Be3 {[%clk 0:00:41.4]}
26... Nb5 {[%clk 0:00:06.8]} 27. Qh3 {[%clk 0:00:38.2]} 27... Kg8 {[%clk
0:00:04.6]} 28. Qg3 {[%clk 0:00:36.8]} 28... Kh8 {[%clk 0:00:04.1]} 29. Qh3
{[%clk 0:00:36.4]} 29... Kg8 {[%clk 0:00:04.1]} 30. Bxh6 {[%clk 0:00:35.9]}
30... g6 {[%clk 0:00:01.9]} 31. Bxf8 {[%clk 0:00:33.9]} 31... Bxf8 {[%clk
0:00:02.4]} 32. Qg3 {[%clk 0:00:31.3]} 32... Bg7 {[%clk 0:00:02.8]} 33. Qg5
{[%clk 0:00:27.8]} 33... Qb3 {[%clk 0:00:02.7]} 34. Re2 {[%clk 0:00:26.5]} 34...
Nc7 {[%clk 0:00:01.4]} 35. Qe7 {[%clk 0:00:22.7]} 35... b5 {[%clk 0:00:02.3]}
36. f4 {[%clk 0:00:19.9]} 36... Ne8 {[%clk 0:00:01.8]} 37. Qd7 {[%clk
0:00:18.7]} 37... Ra8 {[%clk 0:00:01.3]} 38. Qe7 {[%clk 0:00:18.6]} 38... Rb8
{[%clk 0:00:01.4]} 39. Qh4 {[%clk 0:00:18.8]} 39... Bf8 {[%clk 0:00:01.1]} 40.
Qg5 {[%clk 0:00:17.1]} 40... Bg7 {[%clk 0:00:02]} 41. h4 {[%clk 0:00:16.9]}
41... b4 {[%clk 0:00:02.1]} 42. axb4 {[%clk 0:00:15.8]} 42... a5 {[%clk
0:00:02.7]} 43. bxa5 {[%clk 0:00:15.5]} 43... Qa4 {[%clk 0:00:03.6]} 44. h5
{[%clk 0:00:14.5]} 44... Rc8 {[%clk 0:00:04.1]} 45. hxg6 {[%clk 0:00:14.4]}
45... fxg6 {[%clk 0:00:05]} 46. Qxg6 {[%clk 0:00:14.4]} 46... Qxa5 {[%clk
0:00:05.4]} 47. Qh7+ {[%clk 0:00:14.2]} 47... Kf8 {[%clk 0:00:05.9]} 48. Bg6
{[%clk 0:00:13.3]} 48... Qc7 {[%clk 0:00:05.4]} 49. Qh3 {[%clk 0:00:12.4]} 49...
Ke7 {[%clk 0:00:05.4]} 50. Bxe8 {[%clk 0:00:10.2]} 50... Rxe8 {[%clk 0:00:04.8]}
51. Qh4+ {[%clk 0:00:10.2]} 51... Kf7 {[%clk 0:00:04.6]} 52. Qh5+ {[%clk
0:00:10.3]} 52... Ke7 {[%clk 0:00:04.6]} 53. Rf3 {[%clk 0:00:10.3]} 53... Rh8
{[%clk 0:00:04.3]} 54. Qxh8 {[%clk 0:00:07.9]} 54... Bxh8 {[%clk 0:00:05.2]} 55.
Rh3 {[%clk 0:00:07.2]} 55... Bg7 {[%clk 0:00:05.6]} 56. Rh7 {[%clk 0:00:06.6]}
56... Kf8 {[%clk 0:00:06.1]} 57. Re3 {[%clk 0:00:05.7]} 57... Qc5 {[%clk
0:00:06.2]} 58. Rg3 {[%clk 0:00:04.7]} 58... Qf2 {[%clk 0:00:06]} 59. Rgxg7
{[%clk 0:00:03.8]} 59... Qf1+ {[%clk 0:00:06.2]} 60. Kh2 {[%clk 0:00:03]} 60...
Qxf4+ {[%clk 0:00:06.7]} 61. Kh1 {[%clk 0:00:02.7]} 61... Qf1+ {[%clk
0:00:06.3]} 62. Kh2 {[%clk 0:00:02.9]} 62... Qf4+ {[%clk 0:00:06]} 63. Kh1
{[%clk 0:00:03.1]} 63... Qc1+ {[%clk 0:00:04.3]} 64. Kh2 {[%clk 0:00:03.3]}
64... Qf4+ {[%clk 0:00:04.1]} 1/2-1/2

[Event "Betsys MČR v online bleskovém šachu 2021"]
[Site "Chess.com"]
[Date "2021.04.17"]
[Round "1"]
[White "Innerz98"]
[Black "Klokan64"]
[Result "1-0"]
[WhiteElo "2105"]
[BlackElo "1429"]
[TimeControl "180+1"]
[EndTime "9:09:27 PDT"]
[Termination "Uživatel Innerz98 zvítězil po vzdání soupeře"]

1. d4 {[%clk 0:02:55.9]} 1... d6 {[%clk 0:02:59.5]} 2. Bf4 {[%clk 0:02:52.1]}
2... Nf6 {[%clk 0:02:58.7]} 3. e3 {[%clk 0:02:50.9]} 3... c6 {[%clk 0:02:58.3]}
4. Nf3 {[%clk 0:02:48.3]} 4... Bg4 {[%clk 0:02:57.7]} 5. Be2 {[%clk 0:02:46]}
5... e6 {[%clk 0:02:57.2]} 6. c4 {[%clk 0:02:45.1]} 6... Be7 {[%clk 0:02:56.5]}
7. Nc3 {[%clk 0:02:45.4]} 7... O-O {[%clk 0:02:55.3]} 8. O-O {[%clk 0:02:45.6]}
8... Re8 {[%clk 0:02:54.5]} 9. h3 {[%clk 0:02:41.5]} 9... Bh5 {[%clk 0:02:53.2]}
10. Rc1 {[%clk 0:02:35.4]} 10... d5 {[%clk 0:02:42.7]} 11. Ne5 {[%clk
0:02:32.3]} 11... Bxe2 {[%clk 0:02:38.8]} 12. Qxe2 {[%clk 0:02:33.2]} 12... Nbd7
{[%clk 0:02:38.5]} 13. Nf3 {[%clk 0:02:28.2]} 13... Ne4 {[%clk 0:02:32.6]} 14.
Nxe4 {[%clk 0:02:26.8]} 14... dxe4 {[%clk 0:02:32.3]} 15. Nd2 {[%clk 0:02:26.7]}
15... f5 {[%clk 0:02:31.9]} 16. Rfd1 {[%clk 0:02:25.9]} 16... Bg5 {[%clk
0:02:22.3]} 17. Bh2 {[%clk 0:02:18.9]} 17... Qe7 {[%clk 0:02:19.1]} 18. a3
{[%clk 0:02:08.9]} 18... a5 {[%clk 0:02:16.1]} 19. Nb3 {[%clk 0:02:00.2]} 19...
a4 {[%clk 0:02:12.5]} 20. Na1 {[%clk 0:02:00]} 20... Qf6 {[%clk 0:01:49.6]} 21.
Nc2 {[%clk 0:01:56.5]} 21... e5 {[%clk 0:01:45.3]} 22. dxe5 {[%clk 0:01:29.7]}
22... Nxe5 {[%clk 0:01:45.2]} 23. Nb4 {[%clk 0:01:26.5]} 23... f4 {[%clk
0:01:29.6]} 24. exf4 {[%clk 0:01:14.1]} 24... Bxf4 {[%clk 0:01:29.4]} 25. Qxe4
{[%clk 0:01:05.5]} 25... Bxc1 {[%clk 0:01:26.3]} 26. Rxc1 {[%clk 0:01:00.1]}
26... Ng6 {[%clk 0:01:23.6]} 27. Qg4 {[%clk 0:00:48.8]} 27... Qxb2 {[%clk
0:01:18.9]} 28. Rd1 {[%clk 0:00:43.8]} 28... Qxa3 {[%clk 0:01:15.6]} 29. Nd3
{[%clk 0:00:38.3]} 29... Qc3 {[%clk 0:01:04.7]} 30. h4 {[%clk 0:00:24.1]} 30...
a3 {[%clk 0:01:00.3]} 31. h5 {[%clk 0:00:24.4]} 31... a2 {[%clk 0:00:56.4]} 32.
hxg6 {[%clk 0:00:23.5]} 32... hxg6 {[%clk 0:00:54.5]} 33. Be5 {[%clk 0:00:10]}
33... Qxe5 {[%clk 0:00:42.1]} 34. Nxe5 {[%clk 0:00:10.9]} 34... a1=Q {[%clk
0:00:40.3]} 35. Rxa1 {[%clk 0:00:09.7]} 35... Rxa1+ {[%clk 0:00:40.1]} 36. Kh2
{[%clk 0:00:09]} 36... Rxe5 {[%clk 0:00:40]} 37. Qc8+ {[%clk 0:00:08.9]} 37...
Kf7 {[%clk 0:00:38.3]} 38. Qxb7+ {[%clk 0:00:09]} 38... Re7 {[%clk 0:00:38.3]}
39. Qxc6 {[%clk 0:00:08.7]} 39... Rae1 {[%clk 0:00:36.7]} 40. Qd5+ {[%clk
0:00:08.3]} 40... R1e6 {[%clk 0:00:33.9]} 41. c5 {[%clk 0:00:08.4]} 41... g5
{[%clk 0:00:33]} 42. c6 {[%clk 0:00:07.9]} 42... Rc7 {[%clk 0:00:28.3]} 43. Qf5+
{[%clk 0:00:06.9]} 43... Ke7 {[%clk 0:00:26.5]} 44. Qxg5+ {[%clk 0:00:07.2]}
44... Kd6 {[%clk 0:00:26.1]} 45. Qf4+ {[%clk 0:00:05.7]} 45... Kxc6 {[%clk
0:00:24.5]} 46. Qc4+ {[%clk 0:00:05.9]} 46... Kd7 {[%clk 0:00:23.8]} 47. Qd4+
{[%clk 0:00:05.7]} 47... Ke7 {[%clk 0:00:23.4]} 48. Qxg7+ {[%clk 0:00:05.8]}
48... Kd6 {[%clk 0:00:22.8]} 49. Qd4+ {[%clk 0:00:06.4]} 49... Ke7 {[%clk
0:00:22.5]} 50. g3 {[%clk 0:00:07]} 50... Rh6+ {[%clk 0:00:21.6]} 51. Kg2 {[%clk
0:00:07.4]} 51... Rd7 {[%clk 0:00:20.2]} 52. Qe3+ {[%clk 0:00:07.3]} 52... Re6
{[%clk 0:00:20.1]} 53. Qg5+ {[%clk 0:00:07.8]} 53... Kd6 {[%clk 0:00:19]} 54. f4
{[%clk 0:00:08.2]} 54... Re2+ {[%clk 0:00:17.2]} 55. Kf3 {[%clk 0:00:08.6]}
55... Re6 {[%clk 0:00:16.1]} 56. Qb5 {[%clk 0:00:08]} 56... Rf7 {[%clk
0:00:13.9]} 57. g4 {[%clk 0:00:08.2]} 57... Ke7 {[%clk 0:00:13.3]} 58. f5 {[%clk
0:00:08.5]} 58... Rd6 {[%clk 0:00:12.4]} 59. Qe5+ {[%clk 0:00:08.5]} 59... Kd7
{[%clk 0:00:11.9]} 60. g5 {[%clk 0:00:09]} 60... Re7 {[%clk 0:00:10.5]} 61. Qb5+
{[%clk 0:00:08.7]} 61... Kd8 {[%clk 0:00:08.6]} 62. f6 {[%clk 0:00:09]} 62...
Rf7 {[%clk 0:00:07.1]} 63. Qb8+ {[%clk 0:00:08.7]} 63... Kd7 {[%clk 0:00:05.9]}
64. Qb5+ {[%clk 0:00:08]} 64... Ke6 {[%clk 0:00:05.1]} 65. Qe2+ {[%clk
0:00:07.6]} 65... Kd7 {[%clk 0:00:04.9]} 66. Qe5 {[%clk 0:00:06.7]} 66... Re6
{[%clk 0:00:04.3]} 67. Qd5+ {[%clk 0:00:06.6]} 67... Rd6 {[%clk 0:00:02.4]} 68.
Qxf7+ {[%clk 0:00:07.1]} 68... Kc6 {[%clk 0:00:02.5]} 69. Qe7 {[%clk 0:00:07.3]}
69... Rd7 {[%clk 0:00:02.1]} 70. Qe8 {[%clk 0:00:06.8]} 70... Kd6 {[%clk
0:00:01.6]} 71. Qxd7+ {[%clk 0:00:07]} 1-0

[Event "Betsys MČR v online bleskovém šachu 2021"]
[Site "Chess.com"]
[Date "2021.04.17"]
[Round "1"]
[White "svTomas"]
[Black "Akdub"]
[Result "0-1"]
[WhiteElo "1398"]
[BlackElo "2094"]
[TimeControl "180+1"]
[EndTime "9:09:33 PDT"]
[Termination "Uživatel Akdub zvítězil matem"]

1. d4 {[%clk 0:02:55.1]} 1... e6 {[%clk 0:02:51.9]} 2. Bf4 {[%clk 0:02:55.2]}
2... Nf6 {[%clk 0:02:51]} 3. e3 {[%clk 0:02:55.1]} 3... Be7 {[%clk 0:02:51.5]}
4. Bd3 {[%clk 0:02:49.9]} 4... O-O {[%clk 0:02:51.2]} 5. Ne2 {[%clk 0:02:48.7]}
5... c5 {[%clk 0:02:51.1]} 6. c3 {[%clk 0:02:47.8]} 6... Nc6 {[%clk 0:02:50.8]}
7. O-O {[%clk 0:02:35.9]} 7... d6 {[%clk 0:02:50.1]} 8. Qc2 {[%clk 0:02:34.9]}
8... h6 {[%clk 0:02:48.5]} 9. a3 {[%clk 0:02:34.5]} 9... b6 {[%clk 0:02:46.7]}
10. Bb5 {[%clk 0:02:30.9]} 10... Bb7 {[%clk 0:02:46.5]} 11. Nd2 {[%clk 0:02:26]}
11... Rc8 {[%clk 0:02:45.2]} 12. Rad1 {[%clk 0:02:23.6]} 12... cxd4 {[%clk
0:02:32.9]} 13. exd4 {[%clk 0:02:18.3]} 13... Qc7 {[%clk 0:02:28.4]} 14. Qa4
{[%clk 0:02:08.8]} 14... Rfd8 {[%clk 0:02:02.7]} 15. Rfe1 {[%clk 0:02:07.9]}
15... Nh5 {[%clk 0:01:41.5]} 16. Bg3 {[%clk 0:01:55.2]} 16... Nxg3 {[%clk
0:01:39.5]} 17. Nxg3 {[%clk 0:01:55]} 17... d5 {[%clk 0:01:17.3]} 18. Nf3 {[%clk
0:01:50.5]} 18... Bd6 {[%clk 0:01:16.3]} 19. Bxc6 {[%clk 0:01:45.3]} 19... Bxc6
{[%clk 0:01:14.3]} 20. Qc2 {[%clk 0:01:45.3]} 20... a5 {[%clk 0:01:04.7]} 21.
Ne5 {[%clk 0:01:44.7]} 21... Be8 {[%clk 0:01:02.6]} 22. Qd3 {[%clk 0:01:37.2]}
22... b5 {[%clk 0:00:58.9]} 23. Qf3 {[%clk 0:01:33.9]} 23... b4 {[%clk
0:00:54.9]} 24. axb4 {[%clk 0:01:31.2]} 24... axb4 {[%clk 0:00:55.8]} 25. Rc1
{[%clk 0:01:29.3]} 25... Qb7 {[%clk 0:00:50.5]} 26. Ne2 {[%clk 0:01:25.7]} 26...
Bxe5 {[%clk 0:00:48.8]} 27. dxe5 {[%clk 0:01:24.9]} 27... bxc3 {[%clk 0:00:47]}
28. bxc3 {[%clk 0:01:19.9]} 28... Rc4 {[%clk 0:00:46.1]} 29. Nd4 {[%clk
0:01:06.8]} 29... Qc7 {[%clk 0:00:43.4]} 30. Qg3 {[%clk 0:01:03.2]} 30... Rc8
{[%clk 0:00:41.1]} 31. Re3 {[%clk 0:01:00.7]} 31... Rxd4 {[%clk 0:00:36.9]} 32.
Rb1 {[%clk 0:00:49.1]} 32... Re4 {[%clk 0:00:35.3]} 33. Rd3 {[%clk 0:00:46.1]}
33... Qxe5 {[%clk 0:00:33.9]} 34. Qxe5 {[%clk 0:00:42.5]} 34... Rxe5 {[%clk
0:00:34.8]} 35. h3 {[%clk 0:00:41.4]} 35... Re2 {[%clk 0:00:34.3]} 36. Rb7
{[%clk 0:00:35.5]} 36... Rc2 {[%clk 0:00:31.7]} 37. Rb3 {[%clk 0:00:28.3]} 37...
f6 {[%clk 0:00:30.1]} 38. g4 {[%clk 0:00:26.2]} 38... Bf7 {[%clk 0:00:29.5]} 39.
Kg2 {[%clk 0:00:24.2]} 39... e5 {[%clk 0:00:29.7]} 40. Ra3 {[%clk 0:00:24.9]}
40... e4 {[%clk 0:00:24.2]} 41. Re3 {[%clk 0:00:24]} 41... Be6 {[%clk
0:00:21.5]} 42. Kg3 {[%clk 0:00:23.7]} 42... Rc7 {[%clk 0:00:21.1]} 43. Ra6
{[%clk 0:00:22.5]} 43... Kf7 {[%clk 0:00:20.9]} 44. Ra8 {[%clk 0:00:19.9]} 44...
g6 {[%clk 0:00:20.4]} 45. f3 {[%clk 0:00:17.2]} 45... f5 {[%clk 0:00:20.1]} 46.
fxe4 {[%clk 0:00:16.7]} 46... fxe4 {[%clk 0:00:19.1]} 47. Kf4 {[%clk 0:00:17.6]}
47... Kf6 {[%clk 0:00:18.5]} 48. h4 {[%clk 0:00:16.5]} 48... Bf7 {[%clk
0:00:18.7]} 49. g5+ {[%clk 0:00:16.4]} 49... hxg5+ {[%clk 0:00:18.1]} 50. hxg5+
{[%clk 0:00:16.7]} 50... Ke7 {[%clk 0:00:18.5]} 51. Ke5 {[%clk 0:00:16.9]} 51...
R2xc3 {[%clk 0:00:18]} 52. Kd4 {[%clk 0:00:15.9]} 52... Rxe3 {[%clk 0:00:17]}
53. Kxe3 {[%clk 0:00:16.4]} 53... Rc3+ {[%clk 0:00:17.4]} 54. Kd4 {[%clk
0:00:16.3]} 54... Rd3+ {[%clk 0:00:17.9]} 55. Ke5 {[%clk 0:00:16.3]} 55... e3
{[%clk 0:00:17.9]} 56. Ra7+ {[%clk 0:00:15.9]} 56... Ke8 {[%clk 0:00:17.6]} 57.
Kf6 {[%clk 0:00:15.3]} 57... e2 {[%clk 0:00:15.5]} 58. Rxf7 {[%clk 0:00:14.9]}
58... e1=Q {[%clk 0:00:14.6]} 59. Kxg6 {[%clk 0:00:14]} 59... Qe6+ {[%clk
0:00:13.8]} 60. Rf6 {[%clk 0:00:13.1]} 60... Qxf6+ {[%clk 0:00:13.9]} 61. Kxf6
{[%clk 0:00:12.2]} 61... Rg3 {[%clk 0:00:13.2]} 62. Ke5 {[%clk 0:00:10.2]} 62...
Rxg5+ {[%clk 0:00:12.2]} 63. Kd4 {[%clk 0:00:09.9]} 63... Rh5 {[%clk 0:00:11.5]}
64. Kd3 {[%clk 0:00:09.3]} 64... Kd7 {[%clk 0:00:12.4]} 65. Kd4 {[%clk
0:00:08.2]} 65... Kd6 {[%clk 0:00:13.3]} 66. Kd3 {[%clk 0:00:08]} 66... Rh4
{[%clk 0:00:13.6]} 67. Ke3 {[%clk 0:00:08.6]} 67... Ke5 {[%clk 0:00:14]} 68. Kd3
{[%clk 0:00:08.6]} 68... d4 {[%clk 0:00:14.9]} 69. Kd2 {[%clk 0:00:08.3]} 69...
Kd5 {[%clk 0:00:15.7]} 70. Kd3 {[%clk 0:00:08.4]} 70... Rh3+ {[%clk 0:00:16]}
71. Kd2 {[%clk 0:00:08.3]} 71... Ke4 {[%clk 0:00:16.9]} 72. Ke2 {[%clk
0:00:08.3]} 72... Rh2+ {[%clk 0:00:16.2]} 73. Kd1 {[%clk 0:00:06.8]} 73... Ke3
{[%clk 0:00:16.2]} 74. Kc1 {[%clk 0:00:06]} 74... d3 {[%clk 0:00:16.5]} 75. Kd1
{[%clk 0:00:05.8]} 75... Rh1# {[%clk 0:00:16]} 0-1

[Event "Betsys MČR v online bleskovém šachu 2021"]
[Site "Chess.com"]
[Date "2021.04.17"]
[Round "1"]
[White "vasekpaulus"]
[Black "Sfreedom01"]
[Result "1-0"]
[WhiteElo "2061"]
[BlackElo "1334"]
[TimeControl "180+1"]
[EndTime "9:10:07 PDT"]
[Termination "Uživatel vasekpaulus zvítězil matem"]

1. e4 {[%clk 0:03:00.9]} 1... e5 {[%clk 0:02:58.9]} 2. Nf3 {[%clk 0:03:00.9]}
2... Nc6 {[%clk 0:02:59.1]} 3. Bb5 {[%clk 0:03:00.8]} 3... d6 {[%clk 0:02:59.1]}
4. O-O {[%clk 0:03:00.5]} 4... Bd7 {[%clk 0:02:59]} 5. c3 {[%clk 0:02:59.4]}
5... a6 {[%clk 0:02:59.4]} 6. Ba4 {[%clk 0:02:57.7]} 6... Nf6 {[%clk 0:02:58.9]}
7. Bc2 {[%clk 0:02:51.5]} 7... Be7 {[%clk 0:02:58]} 8. h3 {[%clk 0:02:50]} 8...
b5 {[%clk 0:02:56.9]} 9. Re1 {[%clk 0:02:49.8]} 9... O-O {[%clk 0:02:56.4]} 10.
d4 {[%clk 0:02:49.2]} 10... h6 {[%clk 0:02:51]} 11. Nbd2 {[%clk 0:02:45.5]}
11... exd4 {[%clk 0:02:46]} 12. cxd4 {[%clk 0:02:44.2]} 12... d5 {[%clk
0:02:40.3]} 13. e5 {[%clk 0:02:42]} 13... Nh7 {[%clk 0:02:31.2]} 14. Nf1 {[%clk
0:02:35.4]} 14... Re8 {[%clk 0:02:31.3]} 15. a3 {[%clk 0:02:34.4]} 15... f6
{[%clk 0:02:29.8]} 16. Qd3 {[%clk 0:02:30.3]} 16... f5 {[%clk 0:02:09.5]} 17. e6
{[%clk 0:02:28.3]} 17... Bf6 {[%clk 0:01:39.3]} 18. Qxf5 {[%clk 0:02:08]} 18...
Ng5 {[%clk 0:01:16.5]} 19. Nxg5 {[%clk 0:01:49.3]} 19... Bxg5 {[%clk 0:01:09]}
20. Qh7+ {[%clk 0:01:43.3]} 20... Kf8 {[%clk 0:01:06.9]} 21. Qh8+ {[%clk
0:01:35]} 21... Ke7 {[%clk 0:01:06.7]} 22. exd7+ {[%clk 0:01:34.6]} 22... Kxd7
{[%clk 0:01:07]} 23. Qxe8+ {[%clk 0:01:17.7]} 23... Qxe8 {[%clk 0:01:06.7]} 24.
Rxe8 {[%clk 0:01:17.7]} 24... Rxe8 {[%clk 0:01:05.3]} 25. Bxg5 {[%clk 0:01:18]}
25... hxg5 {[%clk 0:01:05.1]} 26. Rd1 {[%clk 0:01:18.3]} 26... Re2 {[%clk
0:01:03]} 27. Bf5+ {[%clk 0:01:13.3]} 27... Kd6 {[%clk 0:00:58.6]} 28. b4 {[%clk
0:00:42.3]} 28... a5 {[%clk 0:00:55.3]} 29. bxa5 {[%clk 0:00:40.7]} 29... Nxa5
{[%clk 0:00:55.6]} 30. Rb1 {[%clk 0:00:35.2]} 30... c6 {[%clk 0:00:53.4]} 31.
Ne3 {[%clk 0:00:34.5]} 31... Nc4 {[%clk 0:00:49]} 32. Nxc4+ {[%clk 0:00:34]}
32... dxc4 {[%clk 0:00:49.3]} 33. Kf1 {[%clk 0:00:20.2]} 33... Rd2 {[%clk
0:00:48.7]} 34. Ke1 {[%clk 0:00:20.3]} 34... Ra2 {[%clk 0:00:46.1]} 35. Be4
{[%clk 0:00:13]} 35... Rxa3 {[%clk 0:00:42]} 36. Bf3 {[%clk 0:00:12.2]} 36...
Ra2 {[%clk 0:00:35.6]} 37. g3 {[%clk 0:00:06.5]} 37... Ra3 {[%clk 0:00:35.4]}
38. Ke2 {[%clk 0:00:06.4]} 38... Ra2+ {[%clk 0:00:35.5]} 39. Ke1 {[%clk
0:00:06.6]} 39... c3 {[%clk 0:00:35.3]} 40. Rc1 {[%clk 0:00:06.4]} 40... c2
{[%clk 0:00:34.4]} 41. Kd2 {[%clk 0:00:06.2]} 41... Ra3 {[%clk 0:00:34.5]} 42.
Be2 {[%clk 0:00:05.6]} 42... Kd5 {[%clk 0:00:31.3]} 43. Rxc2 {[%clk 0:00:05.4]}
43... Kxd4 {[%clk 0:00:30.9]} 44. Rxc6 {[%clk 0:00:05.2]} 44... Ra2+ {[%clk
0:00:31.3]} 45. Rc2 {[%clk 0:00:05.3]} 45... Ra3 {[%clk 0:00:31.1]} 46. Rb2
{[%clk 0:00:05.2]} 46... Ra5 {[%clk 0:00:29.2]} 47. Rxb5 {[%clk 0:00:05.2]}
47... Ra2+ {[%clk 0:00:27.9]} 48. Ke1 {[%clk 0:00:05.4]} 48... Ra1+ {[%clk
0:00:26.4]} 49. Bd1 {[%clk 0:00:05.7]} 49... Kd3 {[%clk 0:00:25]} 50. Rxg5
{[%clk 0:00:05.6]} 50... Ra7 {[%clk 0:00:21.8]} 51. Rd5+ {[%clk 0:00:05.2]}
51... Kc4 {[%clk 0:00:21.3]} 52. Rd2 {[%clk 0:00:05]} 52... Kc3 {[%clk
0:00:20.7]} 53. Re2 {[%clk 0:00:04.9]} 53... Kd4 {[%clk 0:00:20.3]} 54. Kf1
{[%clk 0:00:03.5]} 54... Ra1 {[%clk 0:00:19.6]} 55. Ke1 {[%clk 0:00:03.8]} 55...
Ra7 {[%clk 0:00:18.1]} 56. f4 {[%clk 0:00:04.3]} 56... Ra1 {[%clk 0:00:18.1]}
57. Rd2+ {[%clk 0:00:04.4]} 57... Ke4 {[%clk 0:00:16.3]} 58. Ke2 {[%clk
0:00:04.1]} 58... Kf5 {[%clk 0:00:15.6]} 59. Bc2+ {[%clk 0:00:04.5]} 59... Kf6
{[%clk 0:00:15.3]} 60. Rd6+ {[%clk 0:00:04.7]} 60... Kf7 {[%clk 0:00:15.3]} 61.
Rd2 {[%clk 0:00:05.1]} 61... Ra7 {[%clk 0:00:14.5]} 62. Kf3 {[%clk 0:00:05.4]}
62... Kg8 {[%clk 0:00:14.8]} 63. Be4 {[%clk 0:00:05.6]} 63... Kf8 {[%clk
0:00:13.3]} 64. Kg4 {[%clk 0:00:06.1]} 64... Ra3 {[%clk 0:00:12.9]} 65. Rd5
{[%clk 0:00:05.4]} 65... Ra4 {[%clk 0:00:13.3]} 66. Rf5+ {[%clk 0:00:05.6]}
66... Ke7 {[%clk 0:00:12.9]} 67. Bd5 {[%clk 0:00:05.8]} 67... Ra3 {[%clk
0:00:08.8]} 68. Bg8 {[%clk 0:00:05.9]} 68... Kd6 {[%clk 0:00:08.3]} 69. Rf7
{[%clk 0:00:06]} 69... Kc6 {[%clk 0:00:06.7]} 70. Rxg7 {[%clk 0:00:06.4]} 70...
Kd6 {[%clk 0:00:06.8]} 71. Rg6+ {[%clk 0:00:06.7]} 71... Ke7 {[%clk 0:00:06.4]}
72. f5 {[%clk 0:00:06.9]} 72... Ra5 {[%clk 0:00:04.9]} 73. Kg5 {[%clk
0:00:07.1]} 73... Kf8 {[%clk 0:00:04]} 74. Be6 {[%clk 0:00:06.9]} 74... Ke7
{[%clk 0:00:04.3]} 75. Rg7+ {[%clk 0:00:06.7]} 75... Kd6 {[%clk 0:00:04.8]} 76.
h4 {[%clk 0:00:05.7]} 76... Kc5 {[%clk 0:00:04.3]} 77. h5 {[%clk 0:00:05.7]}
77... Kd4 {[%clk 0:00:04.9]} 78. h6 {[%clk 0:00:05.9]} 78... Ke4 {[%clk
0:00:04.8]} 79. h7 {[%clk 0:00:06.2]} 79... Re5 {[%clk 0:00:04.3]} 80. h8=Q
{[%clk 0:00:05.9]} 80... Ra5 {[%clk 0:00:04.2]} 81. Qh4+ {[%clk 0:00:06]} 81...
Ke5 {[%clk 0:00:04]} 82. Qf4# {[%clk 0:00:05]} 1-0

[Event "Betsys MČR v online bleskovém šachu 2021"]
[Site "Chess.com"]
[Date "2021.04.17"]
[Round "2"]
[White "Krtecci"]
[Black "WhiteLittleHorse"]
[Result "1-0"]
[WhiteElo "2106"]
[BlackElo "961"]
[TimeControl "180+1"]
[EndTime "9:11:40 PDT"]
[Termination "Uživatel Krtecci zvítězil matem"]

1. e4 {[%clk 0:02:52.9]} 1... e5 {[%clk 0:03:00]} 2. Nf3 {[%clk 0:02:50.4]} 2...
Nc6 {[%clk 0:03:00.2]} 3. d4 {[%clk 0:02:50.3]} 3... exd4 {[%clk 0:02:57.5]} 4.
Nxd4 {[%clk 0:02:50.8]} 4... Nxd4 {[%clk 0:02:54.1]} 5. Qxd4 {[%clk 0:02:50.4]}
5... c5 {[%clk 0:02:54.2]} 6. Qe3 {[%clk 0:02:47.5]} 6... d6 {[%clk 0:02:51.9]}
7. Nc3 {[%clk 0:02:47.2]} 7... b6 {[%clk 0:02:49.6]} 8. Bd2 {[%clk 0:02:44]}
8... Bb7 {[%clk 0:02:47.3]} 9. Bb5+ {[%clk 0:02:43.8]} 9... Ke7 {[%clk
0:02:42.5]} 10. Nd5+ {[%clk 0:02:40.1]} 10... Bxd5 {[%clk 0:02:39.2]} 11. exd5+
{[%clk 0:02:40.3]} 11... Kf6 {[%clk 0:02:38.5]} 12. Qg5# {[%clk 0:02:38.3]} 1-0

[Event "Betsys MČR v online bleskovém šachu 2021"]
[Site "Chess.com"]
[Date "2021.04.17"]
[Round "2"]
[White "Tynano"]
[Black "Miky2610"]
[Result "1-0"]
[WhiteElo "2155"]
[BlackElo "1843"]
[TimeControl "180+1"]
[EndTime "9:12:36 PDT"]
[Termination "Uživatel Tynano zvítězil matem"]

1. e4 {[%clk 0:03:00.9]} 1... c6 {[%clk 0:02:59.9]} 2. d4 {[%clk 0:03:00.3]}
2... d5 {[%clk 0:02:59.8]} 3. Nc3 {[%clk 0:03:00.2]} 3... dxe4 {[%clk
0:02:59.2]} 4. Nxe4 {[%clk 0:03:01.1]} 4... Bf5 {[%clk 0:02:58.8]} 5. Ng3 {[%clk
0:03:01.7]} 5... Bg6 {[%clk 0:02:58.8]} 6. Nf3 {[%clk 0:03:02.6]} 6... Nf6
{[%clk 0:02:58.6]} 7. h4 {[%clk 0:03:02.7]} 7... h6 {[%clk 0:02:58.2]} 8. h5
{[%clk 0:03:02.3]} 8... Bh7 {[%clk 0:02:57.8]} 9. Bd3 {[%clk 0:03:02.6]} 9...
Bxd3 {[%clk 0:02:56.6]} 10. Qxd3 {[%clk 0:03:03.5]} 10... e6 {[%clk 0:02:56.3]}
11. Bd2 {[%clk 0:03:03.6]} 11... Bd6 {[%clk 0:02:56.1]} 12. Ne4 {[%clk
0:03:01.5]} 12... Nxe4 {[%clk 0:02:55]} 13. Qxe4 {[%clk 0:03:02.4]} 13... Qc7
{[%clk 0:02:53.3]} 14. O-O-O {[%clk 0:02:59.7]} 14... Nd7 {[%clk 0:02:53]} 15.
c4 {[%clk 0:02:48.7]} 15... O-O-O {[%clk 0:02:51.8]} 16. c5 {[%clk 0:02:45.5]}
16... Be7 {[%clk 0:02:44.9]} 17. Bf4 {[%clk 0:02:34.6]} 17... Qa5 {[%clk
0:02:39.3]} 18. Kb1 {[%clk 0:02:27.9]} 18... b6 {[%clk 0:02:14.4]} 19. Qxc6#
{[%clk 0:02:23.7]} 1-0